[Event "Turkish Cup 2024"]
[Site "Denizli"]
[Date "2024.08.03"]
[Round "7"]
[White "Sabahi, Ali Can"]
[Black "Yilmaz, Turhan"]
[Result "1-0"]
[ECO "C58"]
[WhiteElo "1882"]
[BlackElo "2015"]
[Annotator "RC"]
[PlyCount "203"]
[EventDate "2024.08.01"]
[EventType "swiss"]
[EventCountry "TUR"]
[SourceTitle "playchess.com"]
[Source "ChessBase"]
[SourceQuality "1"]
[TimeControl "5400+30"]

1. e4 {[%emt 0:01:00]} e5 {[%emt 0:01:00]} 2. Nf3 {[%emt 0:00:30]} Nc6 {[%emt 0:00:30]} 3. Bc4 {[%emt 0:00:30]} Nf6 {[%emt 0:00:00]} 4. Ng5 {[%emt 0:00:30]} d5 {[%emt 0:00:00]} 5. exd5 {[%emt 0:00:30]} Na5 {[%emt 0:00:00]} 6. Bb5+ {[%emt 0:00:30]} c6 {[%emt 0:00:00]} 7. dxc6 {[%emt 0:00:00]} bxc6 {[%emt 0:00:00]} 8. Bd3 {[%emt 0:01:00]} Nd5 {[%emt 0:04:00]} 9. Nf3 {[%emt 0:00:00]} Bd6 {[%emt 0:01:30]} 10. O-O {[%emt 0:01:00]} O-O {[%emt 0:00:00]} 11. Re1 {[%emt 0:05:30]} Re8 {[%emt 0:00:00]} 12. Nc3 {[%emt 0:00:30]} Nf4 {[%emt 0:00:30]} 13. Bf1 {[%emt 0:02:30]} c5 {[%emt 0:03:30]} 14. d3 {[%emt 0:00:30]} Ng6 {[%emt 0:00:30]} 15. Be3 {[%emt 0:07:30]} f5 {[%emt 0:01:30]} 16. a3 {[%emt 0:05:30]} Rb8 {[%emt 0:00:30]} 17. Rb1 {[%emt 0:00:30]} Nc6 {[%emt 0:00:30]} 18. Na4 {[%emt 0:03:30]} Qe7 {[%emt 0:02:30]} 19. d4 {[%emt 0:08:30]} cxd4 {[%emt 0:19:30]} 20. Bxd4 {[%emt 0:00:30]} Nxd4 {[%emt 0:05:30]} 21. Nxd4 {[%emt 0:00:30]} Bd7 {[%emt 0:00:30]} 22. Nc3 {[%emt 0:01:30]} Red8 {[%emt 0:01:30]} 23. Nd5 {[%emt 0:08:30]} Qf8 {[%emt 0:05:30]} 24. Nf3 {[%emt 0:03:30]} h6 {[%emt 0:03:30]} 25. c4 {[%emt 0:06:30]} Rbc8 {[%emt 0:01:30]} 26. b4 {[%emt 0:02:30]} Bb8 {[%emt 0:00:00]} 27. Qb3 {[%emt 0:01:30]} Kh8 {[%emt 0:01:00]} 28. c5 {[%emt 0:02:30]} Be6 {[%emt 0:01:30]} 29. Bc4 {[%emt 0:01:30]} Qf7 {[%emt 0:00:30]} 30. Nb6 {[%emt 0:07:30]} Bxc4 {[%emt 0:00:30]} 31. Qxc4 {[%emt 0:03:30]} Qxc4 {[%emt 0:01:30]} 32. Nxc4 {[%emt 0:00:30]} e4 {[%emt 0:00:30]} 33. Nfd2 {[%emt 0:00:30]} Rd4 {[%emt 0:00:30]} 34. Rbc1 {[%emt 0:01:30]} Bf4 {[%emt 0:02:30]} 35. Rc2 {[%emt 0:00:30]} Bxd2 {[%emt 0:04:30]} 36. Nxd2 {[%emt 0:00:30]} Ne5 {[%emt 0:00:00]} 37. Kf1 {[%emt 0:02:30]} Nd3 {[%emt 0:02:00]} 38. Rb1 {[%emt 0:00:00]} Ne5 {[%emt 0:02:30]} 39. Nb3 {[%emt 0:02:00]} Rd3 {[%emt 0:00:30]} 40. b5 {[%emt 0:01:30]} f4 {[%emt 0:01:30]} 41. a4 {[%emt 0:05:40]} f3 {[%emt 0:01:30]} 42. gxf3 {[%emt 0:03:09]} Nxf3 {[%emt 0:00:30]} 43. a5 {[%emt 0:02:15]} Rcd8 {[%emt 0:02:30]} 44. Ke2 {[%emt 0:02:43]} Rxb3 {[%emt 0:05:30]} 45. Rxb3 {[%emt 0:00:30]} Nd4+ {[%emt 0:00:30]} 46. Ke3 {[%emt 0:00:00]} Nxb3 {[%emt 0:00:30]} 47. a6 {[%emt 0:03:58]} Nd4 {[%emt 0:10:10]} 48. Rb2 {[%emt 0:00:40]} Ne6 {[%emt 0:00:13]} 49. b6 {[%emt 0:02:40]} Nxc5 {[%emt 0:02:25]} 50. bxa7 {[%emt 0:00:05]} Nxa6 {[%emt 0:00:29]} 51. Rb6 {[%emt 0:00:11]} Rd3+ {[%emt 0:06:29]} 52. Kxe4 {[%emt 0:01:44]} Nc5+ {[%emt 0:00:09]} 53. Kf5 {[%emt 0:00:25]} Ra3 {[%emt 0:06:47]} 54. Rb8+ {[%emt 0:00:47]} Kh7 {[%emt 0:00:09]} 55. a8=Q {[%emt 0:00:11]} Rxa8 {[%emt 0:00:30]} 56. Rxa8 {[%emt 0:00:00]} Nd7 {[%emt 0:03:21]} 57. Ra6 {[%emt 0:00:26]} Nc5 {[%emt 0:00:30]} 58. Rc6 {[%emt 0:00:30]} Nd7 {[%emt 0:00:14]} 59. h4 {[%emt 0:00:00]} Nf8 {[%emt 0:02:33]} 60. Rd6 {[%emt 0:00:22]} Kg8 {[%emt 0:00:22]} 61. h5 {[%emt 0:00:58]} Kf7 {[%emt 0:01:23]} 62. Rb6 {[%emt 0:01:34]} Kg8 {[%emt 0:00:15]} 63. Rb7 {[%emt 0:00:00]} Nh7 {[%emt 0:00:40]} 64. f3 {[%emt 0:01:08]} Nf8 {[%emt 0:00:45]} 65. f4 {[%emt 0:00:50]} Nh7 {[%emt 0:00:26]} 66. Rb6 {[%emt 0:00:49]} Kf7 {[%emt 0:00:21]} 67. Rb7+ {[%emt 0:00:57]} Kg8 {[%emt 0:00:09]} 68. Ke6 {[%emt 0:00:31]} Nf6 {[%emt 0:00:38]} 69. Rb5 {[%emt 0:00:09]} Kh7 {[%emt 0:00:09]} 70. Kf7 {[%emt 0:00:38]} Ne4 {[%emt 0:00:21]} 71. Kf8 {[%emt 0:00:30]} Ng3 {[%emt 0:00:44]} 72. Rc5 {[%emt 0:00:44]} Kh8 {[%emt 0:00:16]} 73. Kf7 {[%emt 0:01:06]} Kh7 {[%emt 0:00:07]} 74. Re5 {[%emt 0:00:17]} Nf1 {[%emt 0:00:59]} 75. Re2 {[%emt 0:00:46]} Ng3 {[%emt 0:00:16]} 76. Rh2 {[%emt 0:00:55]} Ne4 {[%emt 0:00:19]} 77. Rg2 {[%emt 0:00:37]} Nd6+ {[%emt 0:00:11]} 78. Ke6 {[%emt 0:00:32]} Ne4 {[%emt 0:00:33]} 79. Rg6 {[%emt 0:00:19]} Kg8 {[%emt 0:00:06]} 80. f5 {[%emt 0:00:44]} Kf8 {[%emt 0:00:47]} 81. Ke5 {[%emt 0:00:14]} Nc5 {[%emt 0:00:08]} 82. Kd5 {[%emt 0:00:15]} Nd7 {[%emt 0:00:21]} 83. Kd6 {[%emt 0:00:39]} Nb6 {[%emt 0:01:17]} 84. f6 {[%emt 0:00:41]} gxf6 {[%emt 0:00:30]} 85. Rxf6+ {[%emt 0:00:00]} Kg7 {[%emt 0:00:00]} 86. Rg6+ {[%emt 0:00:08]} Kh7 {[%emt 0:00:02]} 87. Ke6 {[%emt 0:00:45]} Nc4 {[%emt 0:00:13]} 88. Kf6 {[%emt 0:00:33]} Ne3 {[%emt 0:02:53]} 89. Rg7+ {[%emt 0:00:36]} Kh8 {[%emt 0:00:00]} 90. Rb7 {[%emt 0:00:09]} Nd5+ {[%emt 0:01:39]} 91. Kg6 {[%emt 0:00:30]} Nf4+ {[%emt 0:00:30]} 92. Kxh6 {[%emt 0:00:00]} Kg8 {[%emt 0:00:00]} 93. Kg5 {[%emt 0:00:58]} Ne6+ {[%emt 0:00:00]} 94. Kf6 {[%emt 0:00:00]} Nf4 {[%emt 0:00:00]} 95. h6 {[%emt 0:00:09]} Nd5+ {[%emt 0:00:43]} 96. Kg5 {[%emt 0:00:11]} Kh8 {[%emt 0:00:33]} 97. Rd7 {[%emt 0:00:54]} Nb6 {[%emt 0:00:13]} 98. Rd6 {[%emt 0:00:23]} Nc4 {[%emt 0:00:12]} 99. Rd4 {[%emt 0:00:26]} Ne5 {[%emt 0:00:17]} 100. Re4 {[%emt 0:00:19]} Nf7+ {[%emt 0:02:11]} 101. Kg6 {[%emt 0:00:16]} Nd6 {[%emt 0:00:03]} 102. Re6 {[%emt 0:00:17]} 1-0

[Event "Turkish Cup 2024"]
[Site "Denizli"]
[Date "2024.08.03"]
[Round "7"]
[White "Yuksel, Davut Can"]
[Black "Adiguzel, Hakan"]
[Result "1/2-1/2"]
[ECO "E61"]
[WhiteElo "1882"]
[BlackElo "1821"]
[Annotator "NA"]
[PlyCount "58"]
[EventDate "2024.08.01"]
[EventType "swiss"]
[EventCountry "TUR"]
[SourceTitle "playchess.com"]
[Source "ChessBase"]
[SourceQuality "1"]
[TimeControl "5400+30"]

1. d4 {[%emt 0:01:00]} Nf6 {[%emt 0:01:00]} 2. c4 {[%emt 0:00:30]} g6 {[%emt 0:00:00]} 3. Nc3 {[%emt 0:00:00]} Bg7 {[%emt 0:00:00]} 4. Nf3 {[%emt 0:00:00]} O-O {[%emt 0:00:30]} 5. Bf4 {[%emt 0:00:00]} d6 {[%emt 0:00:30]} 6. e3 {[%emt 0:00:00]} c6 {[%emt 0:02:30]} 7. h3 {[%emt 0:00:30]} a6 {[%emt 0:00:30]} 8. a4 {[%emt 0:00:00]} a5 {[%emt 0:00:00]} 9. Be2 {[%emt 0:00:00]} Na6 {[%emt 0:01:00]} 10. O-O {[%emt 0:00:30]} Nb4 {[%emt 0:02:30]} 11. Bh2 {[%emt 0:03:30]} Bf5 {[%emt 0:04:30]} 12. Rc1 {[%emt 0:02:30]} Qb6 {[%emt 0:20:30]} 13. Ne1 {[%emt 0:22:30]} Rfd8 {[%emt 0:04:30]} 14. g4 {[%emt 0:04:30]} Bc8 {[%emt 0:01:30]} 15. Nd3 {[%emt 0:02:30]} e5 {[%emt 0:10:30]} 16. c5 {[%emt 0:03:30]} dxc5 {[%emt 0:04:30]} 17. Bxe5 {[%emt 0:04:30]} Nxd3 {[%emt 0:05:30]} 18. Qxd3 {[%emt 0:01:30]} Be6 {[%emt 0:01:30]} 19. Qc2 {[%emt 0:29:30]} cxd4 {[%emt 0:02:30]} 20. Bxd4 {[%emt 0:00:30]} Qc7 {[%emt 0:00:30]} 21. Nb5 {[%emt 0:02:30]} Qd7 {[%emt 0:01:30]} 22. Na3 {[%emt 0:01:36]} Nd5 {[%emt 0:03:30]} 23. Bxg7 {[%emt 0:00:47]} Kxg7 {[%emt 0:00:00]} 24. Nc4 {[%emt 0:00:51]} Qe7 {[%emt 0:00:00]} 25. Ne5 {[%emt 0:04:51]} Qh4 {[%emt 0:05:30]} 26. Kg2 {[%emt 0:00:38]} Nb4 {[%emt 0:00:30]} 27. Qc5 {[%emt 0:01:32]} Rd5 {[%emt 0:04:30]} 28. Nf3 {[%emt 0:00:36]} Rxc5 {[%emt 0:00:30]} 29. Nxh4 {[%emt 0:00:06]} Rxc1 {[%emt 0:01:30]} 1/2-1/2

[Event "Turkish Cup 2024"]
[Site "Denizli"]
[Date "2024.08.03"]
[Round "7"]
[White "Avsar, Gediz"]
[Black "Madsman, Berk"]
[Result "1-0"]
[ECO "B12"]
[WhiteElo "1880"]
[BlackElo "1797"]
[Annotator "NA"]
[PlyCount "183"]
[EventDate "2024.08.01"]
[EventType "swiss"]
[EventCountry "TUR"]
[SourceTitle "playchess.com"]
[Source "ChessBase"]
[SourceQuality "1"]
[TimeControl "5400+30"]

1. e4 {[%emt 0:01:00]} c6 {[%emt 0:01:00]} 2. d4 {[%emt 0:00:30]} d5 {[%emt 0:00:00]} 3. e5 {[%emt 0:00:00]} Bf5 {[%emt 0:00:00]} 4. Nf3 {[%emt 0:00:00]} e6 {[%emt 0:01:30]} 5. Be2 {[%emt 0:00:00]} Nd7 {[%emt 0:00:30]} 6. O-O {[%emt 0:00:00]} Ne7 {[%emt 0:01:30]} 7. Nbd2 {[%emt 0:03:30]} c5 {[%emt 0:03:30]} 8. c4 {[%emt 0:20:30]} cxd4 {[%emt 0:07:30]} 9. cxd5 {[%emt 0:00:30]} Nxd5 {[%emt 0:07:30]} 10. Nxd4 {[%emt 0:04:30]} Bg6 {[%emt 0:01:30]} 11. Nc4 {[%emt 0:09:30]} Bc5 {[%emt 0:03:30]} 12. Bf3 {[%emt 0:04:30]} O-O {[%emt 0:04:30]} 13. Nb3 {[%emt 0:03:30]} Nb4 {[%emt 0:05:30]} 14. Nxc5 {[%emt 0:04:30]} Nxc5 {[%emt 0:00:30]} 15. Be3 {[%emt 0:00:30]} Ncd3 {[%emt 0:11:30]} 16. a3 {[%emt 0:08:30]} Nd5 {[%emt 0:01:30]} 17. Qd2 {[%emt 0:04:30]} Rc8 {[%emt 0:18:30]} 18. Nd6 {[%emt 0:01:30]} Nxe5 {[%emt 0:03:30]} 19. Nxc8 {[%emt 0:00:30]} Nxf3+ {[%emt 0:00:30]} 20. gxf3 {[%emt 0:00:00]} Qxc8 {[%emt 0:00:30]} 21. Rac1 {[%emt 0:02:00]} Qd8 {[%emt 0:00:00]} 22. Qd4 {[%emt 0:03:30]} b6 {[%emt 0:00:00]} 23. Rc4 {[%emt 0:06:30]} Qe7 {[%emt 0:04:30]} 24. Rfc1 {[%emt 0:01:30]} Bh5 {[%emt 0:02:30]} 25. Kg2 {[%emt 0:01:44]} Qb7 {[%emt 0:01:30]} 26. Qe5 {[%emt 0:02:21]} Nf6 {[%emt 0:02:05]} 27. Qg3 {[%emt 0:02:02]} Nd5 {[%emt 0:01:03]} 28. Qe5 {[%emt 0:00:27]} Nf6 29. Rf4 {[%emt 0:02:11]} Qd5 {[%emt 0:01:08]} 30. Qxd5 {[%emt 0:00:49]} Nxd5 {[%emt 0:00:30]} 31. Rfc4 {[%emt 0:00:00]} Bg6 {[%emt 0:00:55]} 32. Rc8 {[%emt 0:01:29]} Bd3 {[%emt 0:00:59]} 33. Kg3 {[%emt 0:02:52]} Ba6 {[%emt 0:00:11]} 34. Rxf8+ {[%emt 0:00:32]} Kxf8 {[%emt 0:00:02]} 35. a4 {[%emt 0:04:36]} Ke7 {[%emt 0:00:30]} 36. a5 {[%emt 0:00:30]} Kd7 {[%emt 0:00:30]} 37. axb6 {[%emt 0:00:30]} axb6 {[%emt 0:00:30]} 38. Bd4 {[%emt 0:00:30]} f6 {[%emt 0:00:30]} 39. f4 {[%emt 0:00:30]} Bb7 {[%emt 0:00:30]} 40. h4 {[%emt 0:01:42]} b5 {[%emt 0:02:48]} 41. h5 {[%emt 0:01:16]} Ne7 {[%emt 0:00:52]} 42. Bb6 {[%emt 0:01:08]} Nd5 {[%emt 0:00:41]} 43. Be3 {[%emt 0:00:41]} Ne7 {[%emt 0:00:53]} 44. Bb6 {[%emt 0:01:05]} Nd5 {[%emt 0:00:05]} 45. Bc5 {[%emt 0:00:00]} Ke8 {[%emt 0:01:22]} 46. b4 {[%emt 0:00:32]} Bc6 {[%emt 0:01:34]} 47. Ra1 {[%emt 0:00:27]} Ne7 {[%emt 0:00:59]} 48. Bxe7 {[%emt 0:00:41]} Kxe7 {[%emt 0:00:02]} 49. Ra7+ {[%emt 0:00:05]} Bd7 {[%emt 0:00:53]} 50. Kf3 {[%emt 0:00:37]} Kd6 {[%emt 0:00:53]} 51. Ke3 {[%emt 0:00:16]} h6 {[%emt 0:00:16]} 52. Ra8 {[%emt 0:00:36]} e5 {[%emt 0:02:03]} 53. Rg8 {[%emt 0:01:06]} Bg4 {[%emt 0:00:32]} 54. Rxg7 {[%emt 0:00:20]} Bxh5 {[%emt 0:00:08]} 55. Rh7 {[%emt 0:00:32]} Kd5 {[%emt 0:02:55]} 56. Rxh6 {[%emt 0:00:52]} exf4+ {[%emt 0:00:30]} 57. Kxf4 {[%emt 0:00:00]} Bd1 {[%emt 0:00:10]} 58. Kf5 {[%emt 0:00:32]} Kc4 {[%emt 0:00:36]} 59. Rh4+ {[%emt 0:00:05]} Kb3 {[%emt 0:00:15]} 60. Kxf6 {[%emt 0:00:14]} Be2 {[%emt 0:00:00]} 61. Ke5 {[%emt 0:00:59]} Bc4 {[%emt 0:00:00]} 62. f4 {[%emt 0:01:01]} Kxb4 {[%emt 0:00:00]} 63. Kd4 {[%emt 0:00:17]} Be6 {[%emt 0:00:35]} 64. Rh6 {[%emt 0:01:30]} Bd7 {[%emt 0:00:30]} 65. Rd6 {[%emt 0:00:53]} Bg4 {[%emt 0:00:07]} 66. Rd5 {[%emt 0:01:08]} Ka4 {[%emt 0:00:21]} 67. Kc3 {[%emt 0:00:48]} b4+ {[%emt 0:01:08]} 68. Kb2 {[%emt 0:00:30]} b3 {[%emt 0:00:00]} 69. f5 {[%emt 0:00:35]} Bh5 {[%emt 0:00:08]} 70. f6 {[%emt 0:00:30]} Bg6 {[%emt 0:00:00]} 71. Rd7 {[%emt 0:00:00]} Be8 {[%emt 0:00:06]} 72. Re7 {[%emt 0:00:15]} Bg6 {[%emt 0:00:00]} 73. f7 {[%emt 0:00:00]} Bxf7 {[%emt 0:00:05]} 74. Rxf7 {[%emt 0:00:17]} Kb4 {[%emt 0:00:30]} 75. Rf4+ {[%emt 0:00:00]} Kc5 {[%emt 0:00:00]} 76. Kxb3 {[%emt 0:00:00]} Kd5 {[%emt 0:00:00]} 77. Kc3 {[%emt 0:00:00]} Ke5 {[%emt 0:00:00]} 78. Rd4 {[%emt 0:00:23]} Ke6 {[%emt 0:00:00]} 79. Kc4 {[%emt 0:00:00]} Ke5 {[%emt 0:00:00]} 80. Kc5 {[%emt 0:00:16]} Kf5 {[%emt 0:00:00]} 81. Kd5 {[%emt 0:00:00]} Kf6 {[%emt 0:00:03]} 82. Rf4+ {[%emt 0:00:12]} Kg5 {[%emt 0:00:00]} 83. Ke5 {[%emt 0:00:00]} Kg6 {[%emt 0:00:13]} 84. Rg4+ {[%emt 0:00:09]} Kf7 {[%emt 0:00:00]} 85. Rg5 {[%emt 0:00:00]} Ke7 {[%emt 0:00:01]} 86. Rg7+ {[%emt 0:00:22]} Ke8 {[%emt 0:00:00]} 87. Ke6 {[%emt 0:00:00]} Kd8 {[%emt 0:00:07]} 88. Rh7 {[%emt 0:00:13]} Kc8 {[%emt 0:00:00]} 89. Kd6 {[%emt 0:00:00]} Kb8 {[%emt 0:00:16]} 90. Kc6 {[%emt 0:00:14]} Ka8 {[%emt 0:00:30]} 91. Kb6 {[%emt 0:00:30]} Kb8 {[%emt 0:00:00]} 92. Rh8# {[%emt 0:00:00]} 1-0

[Event "Turkish Cup 2024"]
[Site "Denizli"]
[Date "2024.08.03"]
[Round "7"]
[White "Karaca, Yigit"]
[Black "Callioglu, Yigit Sarp"]
[Result "1-0"]
[ECO "A00"]
[WhiteElo "1879"]
[BlackElo "1863"]
[Annotator "NA"]
[PlyCount "87"]
[EventDate "2024.08.01"]
[EventType "swiss"]
[EventCountry "TUR"]
[SourceTitle "playchess.com"]
[Source "ChessBase"]
[SourceQuality "1"]
[TimeControl "5400+30"]

1. e4 {[%emt 0:01:00]} d5 {[%emt 0:02:00]} 2. Nc3 {[%emt 0:01:30]} d4 {[%emt 0:01:30]} 3. Nce2 {[%emt 0:00:00]} e5 {[%emt 0:00:30]} 4. d3 {[%emt 0:00:00]} c5 {[%emt 0:00:00]} 5. g3 {[%emt 0:02:30]} h5 {[%emt 0:02:00]} 6. f4 {[%emt 0:12:30]} f6 {[%emt 0:03:30]} 7. Nf3 {[%emt 0:04:30]} Nc6 {[%emt 0:00:00]} 8. Bg2 {[%emt 0:02:30]} Be7 {[%emt 0:02:00]} 9. f5 {[%emt 0:12:30]} g5 {[%emt 0:26:30]} 10. fxg6 {[%emt 0:07:30]} f5 {[%emt 0:01:30]} 11. O-O {[%emt 0:14:30]} fxe4 {[%emt 0:00:30]} 12. Ng5 {[%emt 0:03:30]} Nh6 {[%emt 0:14:30]} 13. Nxe4 {[%emt 0:28:07]} Nf5 {[%emt 0:09:30]} 14. Kh1 {[%emt 0:01:17]} Be6 {[%emt 0:05:30]} 15. Ng1 {[%emt 0:00:58]} Qd7 {[%emt 0:01:30]} 16. Ng5 {[%emt 0:03:40]} h4 {[%emt 0:01:30]} 17. g4 {[%emt 0:01:07]} Ng7 {[%emt 0:01:30]} 18. Nxe6 {[%emt 0:00:45]} Qxe6 {[%emt 0:00:30]} 19. Be4 {[%emt 0:00:28]} Qd6 {[%emt 0:05:30]} 20. Rf7 {[%emt 0:01:01]} Ne6 {[%emt 0:00:30]} 21. Qf3 {[%emt 0:00:08]} O-O-O {[%emt 0:00:30]} 22. Nh3 {[%emt 0:00:16]} Rdg8 {[%emt 0:00:30]} 23. Bd2 {[%emt 0:00:25]} Ncd8 {[%emt 0:00:30]} 24. Rh7 {[%emt 0:00:28]} Rf8 {[%emt 0:01:20]} 25. Bf5 {[%emt 0:00:20]} Kb8 {[%emt 0:00:07]} 26. Bh6 {[%emt 0:00:38]} Rxh7 {[%emt 0:02:50]} 27. gxh7 {[%emt 0:01:13]} Rh8 {[%emt 0:00:03]} 28. g5 {[%emt 0:00:03]} Nf7 {[%emt 0:00:24]} 29. Qh5 {[%emt 0:00:41]} Nfd8 {[%emt 0:05:27]} 30. Rf1 {[%emt 0:00:31]} Bf8 {[%emt 0:01:39]} 31. Qg6 {[%emt 0:00:39]} Bxh6 {[%emt 0:02:59]} 32. Qxh6 {[%emt 0:00:10]} Qe7 {[%emt 0:03:19]} 33. Be4 {[%emt 0:00:20]} Nf7 {[%emt 0:00:40]} 34. Qf6 {[%emt 0:00:42]} Qxf6 {[%emt 0:00:24]} 35. gxf6 {[%emt 0:00:35]} Neg5 {[%emt 0:04:51]} 36. Nxg5 {[%emt 0:00:40]} Nxg5 {[%emt 0:00:06]} 37. f7 {[%emt 0:00:00]} Rf8 {[%emt 0:00:43]} 38. h8=Q {[%emt 0:00:13]} Rxh8 {[%emt 0:01:36]} 39. f8=R+ {[%emt 0:00:35]} Kc7 {[%emt 0:00:00]} 40. Rg8 {[%emt 0:00:00]} Nh3 {[%emt 0:00:00]} 41. Rg7+ {[%emt 0:00:00]} Kd6 {[%emt 0:00:15]} 42. Rxb7 {[%emt 0:00:00]} c4 {[%emt 0:00:10]} 43. Kg2 {[%emt 0:00:20]} Nf4+ {[%emt 0:00:00]} 44. Kf3 {[%emt 0:00:06]} 1-0

[Event "Turkish Cup 2024"]
[Site "Denizli"]
[Date "2024.08.03"]
[Round "7"]
[White "Yasin, Hur"]
[Black "Dulger, Batuhan Ihsan"]
[Result "1/2-1/2"]
[ECO "D35"]
[WhiteElo "1879"]
[BlackElo "1667"]
[Annotator "NA"]
[PlyCount "116"]
[EventDate "2024.08.01"]
[EventType "swiss"]
[EventCountry "TUR"]
[SourceTitle "playchess.com"]
[Source "ChessBase"]
[SourceQuality "1"]
[TimeControl "5400+30"]

1. d4 {[%emt 0:04:00]} d5 {[%emt 0:01:00]} 2. c4 {[%emt 0:01:30]} e6 {[%emt 0:00:00]} 3. Nf3 {[%emt 0:00:00]} h6 {[%emt 0:00:00]} 4. Nc3 {[%emt 0:01:00]} Nf6 {[%emt 0:00:30]} 5. g3 {[%emt 0:01:30]} Nc6 {[%emt 0:00:30]} 6. cxd5 {[%emt 0:00:30]} exd5 {[%emt 0:00:30]} 7. Bg2 {[%emt 0:00:30]} Bd6 {[%emt 0:02:30]} 8. O-O {[%emt 0:01:30]} O-O {[%emt 0:00:30]} 9. Nb5 {[%emt 0:00:00]} Re8 {[%emt 0:02:30]} 10. Nxd6 {[%emt 0:02:00]} cxd6 {[%emt 0:01:30]} 11. b3 {[%emt 0:02:30]} Bf5 {[%emt 0:03:30]} 12. Bb2 {[%emt 0:00:30]} Qd7 {[%emt 0:00:30]} 13. Re1 {[%emt 0:00:30]} Re7 {[%emt 0:00:30]} 14. Rc1 {[%emt 0:00:30]} Bh3 {[%emt 0:02:30]} 15. Bh1 {[%emt 0:00:30]} Ne4 {[%emt 0:02:30]} 16. Nd2 {[%emt 0:00:30]} Qf5 {[%emt 0:14:30]} 17. Nxe4 {[%emt 0:05:30]} dxe4 {[%emt 0:00:00]} 18. d5 {[%emt 0:00:30]} e3 {[%emt 0:28:00]} 19. f4 {[%emt 0:09:30]} Ne5 {[%emt 0:24:35]} 20. Qd4 {[%emt 0:00:30]} Qf6 {[%emt 0:04:21]} 21. Qxe3 {[%emt 0:12:30]} Nd3 {[%emt 0:00:36]} 22. Bxf6 {[%emt 0:20:30]} Rxe3 {[%emt 0:00:06]} 23. exd3 {[%emt 0:02:30]} Rxe1+ {[%emt 0:00:04]} 24. Rxe1 {[%emt 0:00:30]} gxf6 {[%emt 0:00:03]} 25. Rc1 {[%emt 0:00:30]} Rc8 {[%emt 0:02:42]} 26. Rc4 {[%emt 0:00:30]} Re8 {[%emt 0:03:15]} 27. Kf2 {[%emt 0:02:30]} Re7 {[%emt 0:00:26]} 28. Bf3 {[%emt 0:01:30]} Bf5 {[%emt 0:00:34]} 29. Rc3 {[%emt 0:01:30]} Re8 {[%emt 0:01:00]} 30. g4 {[%emt 0:00:30]} Rc8 {[%emt 0:00:06]} 31. Rc4 {[%emt 0:01:30]} Bd7 {[%emt 0:00:06]} 32. a4 {[%emt 0:07:30]} Kf8 {[%emt 0:00:14]} 33. Kg3 {[%emt 0:00:30]} Kg7 {[%emt 0:03:29]} 34. Be4 {[%emt 0:01:30]} Re8 {[%emt 0:03:10]} 35. Rc7 {[%emt 0:00:42]} Bc8 {[%emt 0:00:05]} 36. Kf3 {[%emt 0:00:18]} a6 {[%emt 0:00:30]} 37. Bf5 {[%emt 0:00:39]} Bxf5 {[%emt 0:01:19]} 38. gxf5 {[%emt 0:00:21]} Re1 {[%emt 0:00:23]} 39. Rxb7 {[%emt 0:00:30]} Rf1+ {[%emt 0:00:09]} 40. Ke3 {[%emt 0:00:30]} Re1+ {[%emt 0:00:21]} 41. Kf2 {[%emt 0:03:11]} Rh1 {[%emt 0:00:12]} 42. Kg2 {[%emt 0:02:58]} Rd1 {[%emt 0:00:30]} 43. Rb6 {[%emt 0:00:30]} Rd2+ {[%emt 0:00:00]} 44. Kg1 {[%emt 0:00:00]} Rxd3 {[%emt 0:00:17]} 45. Rxd6 {[%emt 0:00:00]} a5 {[%emt 0:00:03]} 46. Kg2 {[%emt 0:03:55]} Rxb3 {[%emt 0:01:08]} 47. Ra6 {[%emt 0:00:29]} Rb4 {[%emt 0:00:25]} 48. Rxa5 {[%emt 0:02:41]} Rxf4 {[%emt 0:00:06]} 49. Rb5 {[%emt 0:00:15]} Rxa4 {[%emt 0:00:19]} 50. Kf3 {[%emt 0:02:09]} Rd4 {[%emt 0:00:30]} 51. Ke3 {[%emt 0:00:30]} Rd1 {[%emt 0:00:00]} 52. Ke4 {[%emt 0:00:00]} Kf8 {[%emt 0:00:05]} 53. Rb8+ {[%emt 0:02:24]} Ke7 {[%emt 0:01:04]} 54. Rb7+ {[%emt 0:01:31]} Ke8 {[%emt 0:00:07]} 55. Rb8+ {[%emt 0:00:46]} Ke7 {[%emt 0:00:32]} 56. Rh8 {[%emt 0:00:17]} Re1+ {[%emt 0:00:04]} 57. Kf4 {[%emt 0:00:47]} Rf1+ {[%emt 0:00:00]} 58. Ke4 {[%emt 0:00:39]} Re1+ {[%emt 0:00:00]} 1/2-1/2

[Event "Turkish Cup 2024"]
[Site "Denizli"]
[Date "2024.08.03"]
[Round "7"]
[White "Degirmenci, Yagiz"]
[Black "Bilir, Ibrahim"]
[Result "0-1"]
[ECO "A37"]
[WhiteElo "1871"]
[BlackElo "1830"]
[Annotator "NA"]
[PlyCount "114"]
[EventDate "2024.08.01"]
[EventType "swiss"]
[EventCountry "TUR"]
[SourceTitle "playchess.com"]
[Source "ChessBase"]
[SourceQuality "1"]
[TimeControl "5400+30"]

1. c4 {[%emt 0:04:00]} c5 {[%emt 0:01:00]} 2. Nc3 {[%emt 0:00:30]} g6 {[%emt 0:00:30]} 3. g3 {[%emt 0:00:30]} Bg7 {[%emt 0:00:30]} 4. Bg2 {[%emt 0:00:30]} Nc6 {[%emt 0:00:00]} 5. Nf3 {[%emt 0:01:30]} Nh6 {[%emt 0:00:00]} 6. d3 {[%emt 0:02:30]} Nf5 {[%emt 0:00:30]} 7. O-O {[%emt 0:20:30]} O-O {[%emt 0:00:30]} 8. e4 {[%emt 0:06:30]} Nfd4 {[%emt 0:00:30]} 9. Ne2 {[%emt 0:05:30]} d6 {[%emt 0:02:30]} 10. Nexd4 {[%emt 0:00:30]} Nxd4 {[%emt 0:02:30]} 11. Nxd4 {[%emt 0:01:30]} Bxd4 {[%emt 0:00:30]} 12. Rb1 {[%emt 0:00:00]} a5 {[%emt 0:05:30]} 13. Bh6 {[%emt 0:04:00]} Re8 {[%emt 0:00:30]} 14. Kh1 {[%emt 0:00:30]} Rb8 {[%emt 0:02:30]} 15. f4 {[%emt 0:00:30]} e6 {[%emt 0:05:30]} 16. g4 {[%emt 0:07:30]} f5 {[%emt 0:00:30]} 17. Qe1 {[%emt 0:07:30]} Bd7 {[%emt 0:06:30]} 18. Qg3 {[%emt 0:01:30]} b5 {[%emt 0:03:30]} 19. cxb5 {[%emt 0:01:30]} Rxb5 {[%emt 0:00:30]} 20. b3 {[%emt 0:00:30]} Qc7 {[%emt 0:10:30]} 21. h4 {[%emt 0:01:30]} Kh8 {[%emt 0:04:30]} 22. exf5 {[%emt 0:03:30]} exf5 {[%emt 0:00:30]} 23. Rbe1 {[%emt 0:00:30]} Rbb8 {[%emt 0:01:30]} 24. h5 {[%emt 0:02:30]} gxh5 {[%emt 0:02:30]} 25. g5 {[%emt 0:02:30]} Bc6 {[%emt 0:01:30]} 26. Kh2 {[%emt 0:05:30]} Bc3 {[%emt 0:10:30]} 27. Re3 {[%emt 0:09:13]} Rxe3 {[%emt 0:06:30]} 28. Qxe3 {[%emt 0:00:06]} Re8 {[%emt 0:00:00]} 29. Qg3 {[%emt 0:00:49]} Re2 {[%emt 0:03:00]} 30. Rf2 {[%emt 0:01:53]} Be1 {[%emt 0:00:30]} 31. Rxe2 {[%emt 0:00:15]} Bxg3+ {[%emt 0:00:30]} 32. Kxg3 {[%emt 0:00:00]} Kg8 {[%emt 0:10:36]} 33. Bxc6 {[%emt 0:00:35]} Qxc6 {[%emt 0:00:30]} 34. Re7 {[%emt 0:00:00]} h4+ {[%emt 0:02:27]} 35. Kf2 {[%emt 0:00:54]} Qd5 {[%emt 0:02:02]} 36. Rg7+ {[%emt 0:00:45]} Kf8 {[%emt 0:00:25]} 37. Rxh7+ {[%emt 0:00:15]} Kg8 {[%emt 0:00:34]} 38. Rg7+ {[%emt 0:00:43]} Kh8 {[%emt 0:00:44]} 39. g6 {[%emt 0:01:03]} h3 {[%emt 0:06:52]} 40. Rh7+ {[%emt 0:00:54]} Kg8 {[%emt 0:00:04]} 41. Rg7+ {[%emt 0:00:03]} Kf8 {[%emt 0:02:01]} 42. Rh7+ {[%emt 0:00:15]} Ke8 {[%emt 0:00:31]} 43. Rh8+ {[%emt 0:00:57]} Kd7 {[%emt 0:00:49]} 44. g7 {[%emt 0:00:22]} h2 {[%emt 0:03:15]} 45. g8=Q {[%emt 0:04:52]} Qxg8 {[%emt 0:00:16]} 46. Rxg8 {[%emt 0:00:00]} h1=Q {[%emt 0:00:09]} 47. Bg5 {[%emt 0:01:20]} Qh2+ {[%emt 0:00:14]} 48. Ke3 {[%emt 0:01:04]} Qxa2 {[%emt 0:00:47]} 49. Rg7+ {[%emt 0:00:22]} Kc6 {[%emt 0:00:21]} 50. Ra7 {[%emt 0:00:53]} Qxb3 {[%emt 0:00:56]} 51. Ra6+ {[%emt 0:00:11]} Kc7 {[%emt 0:00:01]} 52. Rxa5 {[%emt 0:00:29]} c4 {[%emt 0:00:24]} 53. Rd5 {[%emt 0:01:32]} c3 {[%emt 0:00:19]} 54. Rd4 {[%emt 0:00:46]} d5 {[%emt 0:00:16]} 55. Bf6 {[%emt 0:00:31]} c2 {[%emt 0:00:43]} 56. Kd2 {[%emt 0:01:13]} Qb1 {[%emt 0:00:12]} 57. Be5+ {[%emt 0:00:17]} Kc8 {[%emt 0:00:21]} 0-1